[Event "Live Chess"]
[Site "Chess.com"]
[Date "2023.05.20"]
[Round "-"]
[White "WelshTiger"]
[Black "EdenHazard8"]
[Result "0-1"]
[WhiteElo "2431"]
[BlackElo "2120"]
[TimeControl "300"]
[EndTime "9:33:54 PDT"]
[Termination "EdenHazard8 won by checkmate"]

1. e4 {[%clk 0:04:58]} 1... c5 {[%clk 0:04:58.8]} 2. Nc3 {[%clk 0:04:56.8]} 2...
Nc6 {[%clk 0:04:58.1]} 3. Bb5 {[%clk 0:04:55]} 3... g6 {[%clk 0:04:53.9]} 4.
Bxc6 {[%clk 0:04:52.1]} 4... bxc6 {[%clk 0:04:53.8]} 5. Nf3 {[%clk 0:04:46.3]}
5... Bg7 {[%clk 0:04:52.8]} 6. O-O {[%clk 0:04:45.1]} 6... e6 {[%clk 0:04:51.2]}
7. d3 {[%clk 0:04:40.2]} 7... Ne7 {[%clk 0:04:49.8]} 8. Be3 {[%clk 0:04:38.4]}
8... d6 {[%clk 0:04:47.5]} 9. e5 {[%clk 0:04:36.4]} 9... Nd5 {[%clk 0:04:40.5]}
10. exd6 {[%clk 0:04:33.8]} 10... Nxe3 {[%clk 0:04:38.4]} 11. fxe3 {[%clk
0:04:32.6]} 11... Qxd6 {[%clk 0:04:32]} 12. Qd2 {[%clk 0:04:30.4]} 12... Rb8
{[%clk 0:04:29.1]} 13. b3 {[%clk 0:04:29.1]} 13... O-O {[%clk 0:04:27.6]} 14.
Ne4 {[%clk 0:04:28.3]} 14... Qe7 {[%clk 0:04:26.1]} 15. Rae1 {[%clk 0:04:27.6]}
15... Rd8 {[%clk 0:04:15.7]} 16. Qa5 {[%clk 0:04:24.1]} 16... Rb5 {[%clk
0:04:07]} 17. Qa3 {[%clk 0:04:22.9]} 17... f5 {[%clk 0:03:50.5]} 18. Ned2 {[%clk
0:04:08.6]} 18... Bc3 {[%clk 0:03:46.9]} 19. Re2 {[%clk 0:04:06.4]} 19... Ra5
{[%clk 0:03:41.2]} 20. Qc1 {[%clk 0:04:03.7]} 20... Rxa2 {[%clk 0:03:40.3]} 21.
Nc4 {[%clk 0:04:02.8]} 21... Ra1 {[%clk 0:03:36.4]} 22. Qxa1 {[%clk 0:03:59.4]}
22... Bxa1 {[%clk 0:03:36.3]} 23. Rxa1 {[%clk 0:03:58.6]} 23... Qg7 {[%clk
0:03:34.3]} 24. Ra5 {[%clk 0:03:54.1]} 24... Rd5 {[%clk 0:03:19.6]} 25. e4
{[%clk 0:03:50.5]} 25... fxe4 {[%clk 0:03:17.3]} 26. Rxe4 {[%clk 0:03:48.4]}
26... e5 {[%clk 0:03:06.2]} 27. Nfxe5 {[%clk 0:03:39.5]} 27... Bf5 {[%clk
0:03:04.6]} 28. Re2 {[%clk 0:03:37.9]} 28... Qe7 {[%clk 0:02:50.3]} 29. Ra6
{[%clk 0:03:32.7]} 29... Bg4 {[%clk 0:02:28.9]} 30. Re3 {[%clk 0:03:26]} 30...
Qg5 {[%clk 0:02:27.7]} 31. Rxc6 {[%clk 0:03:12.5]} 31... Rxe5 {[%clk 0:01:35]}
32. Rxe5 {[%clk 0:03:10.3]} 32... Qc1+ {[%clk 0:01:33.3]} 33. Kf2 {[%clk
0:03:08.1]} 33... Qxc2+ {[%clk 0:01:32.6]} 34. Kg3 {[%clk 0:03:03.9]} 34... Bf5
{[%clk 0:00:44.1]} 35. Rc7 {[%clk 0:02:45.1]} 35... Qxd3+ {[%clk 0:00:37.5]} 36.
Kf4 {[%clk 0:02:44.3]} 36... Qd4+ {[%clk 0:00:34.3]} 37. Kg3 {[%clk 0:02:26.2]}
37... Qg4+ {[%clk 0:00:29.5]} 38. Kf2 {[%clk 0:02:25.4]} 38... Qf4+ {[%clk
0:00:28]} 39. Ke2 {[%clk 0:02:19.1]} 39... Bg4+ {[%clk 0:00:26.2]} 40. Kd3
{[%clk 0:02:17.6]} 40... Qd4+ {[%clk 0:00:25.4]} 41. Kc2 {[%clk 0:02:16.8]}
41... Bf5+ {[%clk 0:00:19.4]} 42. Kc1 {[%clk 0:02:11.8]} 42... Qc3+ {[%clk
0:00:17.8]} 43. Kd1 {[%clk 0:02:07]} 43... Qxb3+ {[%clk 0:00:17.3]} 44. Ke2
{[%clk 0:02:06.9]} 44... Qxc4+ {[%clk 0:00:16.2]} 45. Ke3 {[%clk 0:02:06.6]}
45... Qd4+ {[%clk 0:00:15.6]} 46. Kf3 {[%clk 0:02:05.7]} 46... Qxe5 {[%clk
0:00:15]} 47. Rc8+ {[%clk 0:02:05.2]} 47... Kg7 {[%clk 0:00:14.3]} 48. Rd8
{[%clk 0:02:04.3]} 48... Qe4+ {[%clk 0:00:13.1]} 49. Kf2 {[%clk 0:02:03.9]}
49... Qf4+ {[%clk 0:00:12.2]} 50. Ke2 {[%clk 0:02:03.2]} 50... c4 {[%clk
0:00:11.9]} 51. Re8 {[%clk 0:02:00.7]} 51... Bd3+ {[%clk 0:00:11]} 52. Kd1
{[%clk 0:01:59.3]} 52... c3 {[%clk 0:00:10.5]} 53. Re2 {[%clk 0:01:53.5]} 53...
c2+ {[%clk 0:00:10.4]} 54. Rxc2 {[%clk 0:01:52.5]} 54... Bxc2+ {[%clk
0:00:10.3]} 55. Kxc2 {[%clk 0:01:52.3]} 55... Qf2+ {[%clk 0:00:09.7]} 56. Kc3
{[%clk 0:01:52]} 56... Qxg2 {[%clk 0:00:09.6]} 57. Kd4 {[%clk 0:01:51.7]} 57...
Qxh2 {[%clk 0:00:09.5]} 58. Kd5 {[%clk 0:01:51]} 58... Qg3 {[%clk 0:00:09.2]}
59. Kc6 {[%clk 0:01:50.9]} 59... h5 {[%clk 0:00:08.5]} 60. Kb7 {[%clk
0:01:50.8]} 60... h4 {[%clk 0:00:08.3]} 61. Ka8 {[%clk 0:01:50.7]} 61... h3
{[%clk 0:00:08.2]} 62. Kb7 {[%clk 0:01:49.9]} 62... h2 {[%clk 0:00:08.1]} 63.
Ka8 {[%clk 0:01:49.8]} 63... h1=Q+ {[%clk 0:00:08]} 64. Kxa7 {[%clk 0:01:48.2]}
64... Qf1 {[%clk 0:00:07.8]} 65. Kb6 {[%clk 0:01:46.7]} 65... Qgg2 {[%clk
0:00:07.7]} 66. Kc7 {[%clk 0:01:46.5]} 66... Qge2 {[%clk 0:00:07.6]} 67. Kd8
{[%clk 0:01:45.2]} 67... Qfd1+ {[%clk 0:00:07.5]} 68. Kc7 {[%clk 0:01:44.6]}
68... Qec2+ {[%clk 0:00:07.1]} 69. Kb6 {[%clk 0:01:44.5]} 69... Qdb1+ {[%clk
0:00:06.5]} 70. Ka5 {[%clk 0:01:44.4]} 70... Qca2# {[%clk 0:00:05.8]} 0-1

[Event "Live Chess"]
[Site "Chess.com"]
[Date "2023.05.20"]
[Round "-"]
[White "JoshMcK"]
[Black "amazinggoalkeeper"]
[Result "1-0"]
[WhiteElo "1540"]
[BlackElo "499"]
[TimeControl "300"]
[EndTime "9:33:54 PDT"]
[Termination "JoshMcK won by resignation"]

1. e4 {[%clk 0:04:58]} 1... e5 {[%clk 0:04:58.2]} 2. Nf3 {[%clk 0:04:56.6]} 2...
Nc6 {[%clk 0:04:55.8]} 3. Bb5 {[%clk 0:04:56.1]} 3... Nd4 {[%clk 0:04:52.6]} 4.
Nxd4 {[%clk 0:04:51.7]} 4... exd4 {[%clk 0:04:51.1]} 5. O-O {[%clk 0:04:49.7]}
5... Bd6 {[%clk 0:04:48.6]} 6. c3 {[%clk 0:04:47.2]} 6... Nf6 {[%clk 0:04:45.8]}
7. cxd4 {[%clk 0:04:43.8]} 7... Nxe4 {[%clk 0:04:41.4]} 8. Re1 {[%clk
0:04:43.1]} 8... O-O {[%clk 0:04:38.4]} 9. Rxe4 {[%clk 0:04:40.2]} 9... Re8
{[%clk 0:04:38.2]} 10. Rxe8+ {[%clk 0:04:38.6]} 10... Qxe8 {[%clk 0:04:37.7]}
11. Nc3 {[%clk 0:04:37.5]} 11... c5 {[%clk 0:04:35.4]} 12. dxc5 {[%clk
0:04:32.1]} 12... Bc7 {[%clk 0:04:35.3]} 13. d4 {[%clk 0:04:28.5]} 13... Qe7
{[%clk 0:04:25.5]} 14. Nd5 {[%clk 0:04:21.8]} 1-0

[Event "Live Chess"]
[Site "Chess.com"]
[Date "2023.05.20"]
[Round "-"]
[White "bristolunichess"]
[Black "ranvir123"]
[Result "1-0"]
[WhiteElo "1847"]
[BlackElo "837"]
[TimeControl "300"]
[EndTime "9:34:05 PDT"]
[Termination "bristolunichess won by resignation"]

1. e4 {[%clk 0:04:59.2]} 1... e5 {[%clk 0:04:58.5]} 2. Nf3 {[%clk 0:04:57.7]}
2... Nc6 {[%clk 0:04:56.6]} 3. Bc4 {[%clk 0:04:56.6]} 3... Nd4 {[%clk 0:04:53]}
4. O-O {[%clk 0:04:54.2]} 4... Nxf3+ {[%clk 0:04:51]} 5. Qxf3 {[%clk 0:04:53.1]}
5... Qf6 {[%clk 0:04:48.7]} 6. Qb3 {[%clk 0:04:51.2]} 6... d6 {[%clk 0:04:42]}
7. Nc3 {[%clk 0:04:47]} 7... Be6 {[%clk 0:04:40.7]} 8. Bxe6 {[%clk 0:04:24.7]}
8... Qxe6 {[%clk 0:04:39.4]} 9. Qxb7 {[%clk 0:04:24.2]} 9... Qc8 {[%clk
0:04:35.2]} 10. Qc6+ {[%clk 0:04:19.5]} 10... Qd7 {[%clk 0:04:32.2]} 11. Qxa8+
{[%clk 0:04:17.9]} 11... Qc8 {[%clk 0:04:30.2]} 12. Qc6+ {[%clk 0:04:16.1]}
12... Ke7 {[%clk 0:04:28.1]} 13. d4 {[%clk 0:04:14.7]} 13... Qb7 {[%clk
0:04:25.7]} 1-0

[Event "Live Chess"]
[Site "Chess.com"]
[Date "2023.05.20"]
[Round "-"]
[White "CheckString"]
[Black "HD_IN4k"]
[Result "1-0"]
[WhiteElo "1352"]
[BlackElo "297"]
[TimeControl "300"]
[EndTime "9:34:25 PDT"]
[Termination "CheckString won by checkmate"]

1. e4 {[%clk 0:04:58]} 1... g6 {[%clk 0:04:55.4]} 2. d4 {[%clk 0:04:56.6]} 2...
Bg7 {[%clk 0:04:54.8]} 3. f4 {[%clk 0:04:54]} 3... d5 {[%clk 0:04:52.1]} 4. e5
{[%clk 0:04:49.7]} 4... f6 {[%clk 0:04:47.6]} 5. Nc3 {[%clk 0:04:46.1]} 5...
fxe5 {[%clk 0:04:46.2]} 6. fxe5 {[%clk 0:04:45.3]} 6... Nh6 {[%clk 0:04:31.3]}
7. h3 {[%clk 0:04:31.3]} 7... O-O {[%clk 0:04:24.3]} 8. Nf3 {[%clk 0:04:27.3]}
8... e6 {[%clk 0:04:17.9]} 9. Be3 {[%clk 0:04:18.3]} 9... b6 {[%clk 0:04:12.2]}
10. Qd2 {[%clk 0:04:16.5]} 10... c5 {[%clk 0:04:10.7]} 11. Bxh6 {[%clk
0:04:13.2]} 11... Bxh6 {[%clk 0:04:05.3]} 12. Qxh6 {[%clk 0:04:13.1]} 12... cxd4
{[%clk 0:03:40.4]} 13. Ng5 {[%clk 0:04:07.4]} 13... Qd7 {[%clk 0:03:26.5]} 14.
Ne2 {[%clk 0:04:01.9]} 14... Nc6 {[%clk 0:03:19.1]} 15. O-O-O {[%clk 0:03:59.2]}
15... Nb4 {[%clk 0:03:16.2]} 16. a3 {[%clk 0:03:47.8]} 16... Na2+ {[%clk
0:03:09.2]} 17. Kb1 {[%clk 0:03:46.5]} 17... Nc3+ {[%clk 0:02:57.9]} 18. bxc3
{[%clk 0:03:45.2]} 18... dxc3 {[%clk 0:02:56.1]} 19. Nxc3 {[%clk 0:03:35.5]}
19... Rb8 {[%clk 0:02:52.1]} 20. Bd3 {[%clk 0:03:33.8]} 20... b5 {[%clk
0:02:49.3]} 21. Rhf1 {[%clk 0:03:23.2]} 21... Ba6 {[%clk 0:02:35.7]} 22. Kc1
{[%clk 0:03:12.8]} 22... b4 {[%clk 0:02:31.9]} 23. axb4 {[%clk 0:03:04.8]} 23...
Bxd3 {[%clk 0:02:29]} 24. cxd3 {[%clk 0:02:57.9]} 24... Rb7 {[%clk 0:02:25.8]}
25. Qxf8# {[%clk 0:02:53.6]} 1-0

[Event "Live Chess"]
[Site "Chess.com"]
[Date "2023.05.20"]
[Round "-"]
[White "OSmith06"]
[Black "xx_blindpuffin_xx"]
[Result "0-1"]
[WhiteElo "1737"]
[BlackElo "2188"]
[TimeControl "300"]
[EndTime "9:34:29 PDT"]
[Termination "xx_blindpuffin_xx won by resignation"]

1. e4 {[%clk 0:04:58.8]} 1... e6 {[%clk 0:04:59.1]} 2. d4 {[%clk 0:04:56.9]}
2... d5 {[%clk 0:04:59]} 3. Nd2 {[%clk 0:04:56.4]} 3... dxe4 {[%clk 0:04:58.2]}
4. Nxe4 {[%clk 0:04:56.3]} 4... Bd7 {[%clk 0:04:57.8]} 5. Nf3 {[%clk 0:04:54.4]}
5... Bc6 {[%clk 0:04:57]} 6. Bd3 {[%clk 0:04:51.8]} 6... Nd7 {[%clk 0:04:55.6]}
7. O-O {[%clk 0:04:49.1]} 7... Ngf6 {[%clk 0:04:53.3]} 8. Nxf6+ {[%clk
0:04:44.4]} 8... Nxf6 {[%clk 0:04:51.3]} 9. Bg5 {[%clk 0:04:36.6]} 9... Be7
{[%clk 0:04:49.6]} 10. Ne5 {[%clk 0:04:31.9]} 10... O-O {[%clk 0:04:43.7]} 11.
Nxc6 {[%clk 0:04:25.1]} 11... bxc6 {[%clk 0:04:43.6]} 12. c3 {[%clk 0:04:13.5]}
12... c5 {[%clk 0:04:37]} 13. dxc5 {[%clk 0:04:08.2]} 13... Bxc5 {[%clk
0:04:34.5]} 14. Qf3 {[%clk 0:04:03]} 14... h6 {[%clk 0:04:28.2]} 15. Bxf6 {[%clk
0:03:59.1]} 15... Qxf6 {[%clk 0:04:27.8]} 16. Qxf6 {[%clk 0:03:54.3]} 16... gxf6
{[%clk 0:04:27.7]} 17. b4 {[%clk 0:03:51.1]} 17... Bd6 {[%clk 0:04:21.7]} 18.
Be4 {[%clk 0:03:44.9]} 18... Rab8 {[%clk 0:04:19.6]} 19. a4 {[%clk 0:03:37.5]}
19... f5 {[%clk 0:04:18.1]} 20. Bc6 {[%clk 0:03:25.8]} 20... Be5 {[%clk
0:04:08.1]} 21. Rac1 {[%clk 0:03:14.9]} 21... Rfd8 {[%clk 0:04:05.7]} 22. b5
{[%clk 0:03:02.6]} 22... Rd2 {[%clk 0:03:48.2]} 23. c4 {[%clk 0:02:50.2]} 23...
Bd4 {[%clk 0:03:33.9]} 24. g3 {[%clk 0:02:22.4]} 24... Bc5 {[%clk 0:03:25.4]}
25. h4 {[%clk 0:02:10.3]} 25... Rbd8 {[%clk 0:03:22.6]} 26. Bf3 {[%clk
0:02:05.8]} 26... Kg7 {[%clk 0:03:02.4]} 27. h5 {[%clk 0:01:54.5]} 27... Kf6
{[%clk 0:03:00.7]} 28. a5 {[%clk 0:01:48.4]} 28... Ra2 {[%clk 0:02:52.3]} 29. a6
{[%clk 0:01:44.1]} 29... Rdd2 {[%clk 0:02:50.8]} 30. Rcd1 {[%clk 0:01:36.4]}
30... Bxf2+ {[%clk 0:02:42.4]} 31. Kh1 {[%clk 0:01:21.4]} 31... Bxg3 {[%clk
0:02:39.6]} 32. Rxd2 {[%clk 0:01:19.8]} 32... Rxd2 {[%clk 0:02:39.5]} 33. Rd1
{[%clk 0:01:17.1]} 33... Rxd1+ {[%clk 0:02:36.1]} 34. Bxd1 {[%clk 0:01:17]}
34... Bf2 {[%clk 0:02:34.5]} 35. Kg2 {[%clk 0:01:16.3]} 35... Bc5 {[%clk
0:02:33]} 36. Kf3 {[%clk 0:01:15.3]} 36... e5 {[%clk 0:02:31.4]} 37. Bc2 {[%clk
0:01:13.3]} 37... e4+ {[%clk 0:02:30.3]} 38. Kf4 {[%clk 0:01:09.2]} 38... Bd6+
{[%clk 0:02:29.4]} 39. Ke3 {[%clk 0:01:08.1]} 39... Ke5 {[%clk 0:02:25.9]} 40.
Bb3 {[%clk 0:00:59.4]} 40... f4+ {[%clk 0:02:23.8]} 41. Ke2 {[%clk 0:00:58.7]}
41... f3+ {[%clk 0:02:21.6]} 42. Kf1 {[%clk 0:00:54.3]} 42... e3 {[%clk
0:02:17.4]} 43. c5 {[%clk 0:00:53.1]} 43... Bxc5 {[%clk 0:02:16.7]} 44. Bxf7
{[%clk 0:00:52.3]} 44... e2+ {[%clk 0:02:16.1]} 45. Ke1 {[%clk 0:00:50.9]} 45...
Bb4+ {[%clk 0:02:14.4]} 46. Kf2 {[%clk 0:00:48.8]} 0-1

[Event "Live Chess"]
[Site "Chess.com"]
[Date "2023.05.20"]
[Round "-"]
[White "SaraTang"]
[Black "fgreen"]
[Result "0-1"]
[WhiteElo "168"]
[BlackElo "1509"]
[TimeControl "300"]
[EndTime "9:34:31 PDT"]
[Termination "fgreen won by checkmate"]

1. e4 {[%clk 0:04:57.8]} 1... d6 {[%clk 0:04:58]} 2. Bc4 {[%clk 0:04:56]} 2...
g6 {[%clk 0:04:53.2]} 3. Qf3 {[%clk 0:04:53.2]} 3... e6 {[%clk 0:04:48.1]} 4. e5
{[%clk 0:04:49.6]} 4... d5 {[%clk 0:04:42.3]} 5. Bxd5 {[%clk 0:04:47.3]} 5...
Qxd5 {[%clk 0:04:35.3]} 6. Qxd5 {[%clk 0:04:43.8]} 6... exd5 {[%clk 0:04:34.1]}
7. e6 {[%clk 0:04:36.5]} 7... Bxe6 {[%clk 0:04:31.4]} 8. Nf3 {[%clk 0:04:31.6]}
8... Bg7 {[%clk 0:04:28.9]} 9. O-O {[%clk 0:04:29.3]} 9... Nc6 {[%clk
0:04:26.3]} 10. Re1 {[%clk 0:04:26.3]} 10... O-O-O {[%clk 0:04:20.7]} 11. Rxe6
{[%clk 0:04:23.6]} 11... fxe6 {[%clk 0:04:18.5]} 12. Ng5 {[%clk 0:04:19.6]}
12... Nh6 {[%clk 0:04:14.9]} 13. Nxe6 {[%clk 0:04:15.2]} 13... Rd7 {[%clk
0:04:09]} 14. Nxg7 {[%clk 0:04:13.2]} 14... Rxg7 {[%clk 0:04:07.2]} 15. d3
{[%clk 0:04:09.7]} 15... Nf5 {[%clk 0:03:57.8]} 16. Bg5 {[%clk 0:04:07.2]} 16...
Re8 {[%clk 0:03:44.6]} 17. Bf6 {[%clk 0:04:02.7]} 17... Re1# {[%clk 0:03:40.1]}
0-1

[Event "Live Chess"]
[Site "Chess.com"]
[Date "2023.05.20"]
[Round "-"]
[White "ethanredball"]
[Black "MartinWalker4"]
[Result "0-1"]
[WhiteElo "664"]
[BlackElo "2087"]
[TimeControl "300"]
[EndTime "9:34:35 PDT"]
[Termination "MartinWalker4 won by resignation"]

1. e4 {[%clk 0:04:57.7]} 1... Nf6 {[%clk 0:04:57.8]} 2. Nc3 {[%clk 0:04:55.9]}
2... d5 {[%clk 0:04:55.7]} 3. exd5 {[%clk 0:04:54.3]} 3... Nxd5 {[%clk 0:04:54]}
4. Nxd5 {[%clk 0:04:52.9]} 4... Qxd5 {[%clk 0:04:52]} 5. Nf3 {[%clk 0:04:49.6]}
5... Bg4 {[%clk 0:04:48]} 6. Qe2 {[%clk 0:04:47.4]} 6... Bxf3 {[%clk 0:04:45.1]}
7. Qxf3 {[%clk 0:04:45.3]} 7... Qxf3 {[%clk 0:04:43.3]} 8. gxf3 {[%clk
0:04:43.6]} 8... g6 {[%clk 0:04:41.3]} 9. d3 {[%clk 0:04:39.5]} 9... Bg7 {[%clk
0:04:38.9]} 10. Bg2 {[%clk 0:04:35.6]} 10... Nc6 {[%clk 0:04:22.4]} 11. f4
{[%clk 0:04:33.9]} 11... Nd4 {[%clk 0:04:20.3]} 12. Bxb7 {[%clk 0:04:31.6]}
12... Rb8 {[%clk 0:04:18.2]} 13. Be4 {[%clk 0:04:26.7]} 13... Nxc2+ {[%clk
0:04:16.3]} 0-1

[Event "Live Chess"]
[Site "Chess.com"]
[Date "2023.05.20"]
[Round "-"]
[White "Horseymobile"]
[Black "koljadar"]
[Result "0-1"]
[WhiteElo "1231"]
[BlackElo "1521"]
[TimeControl "300"]
[EndTime "9:34:38 PDT"]
[Termination "koljadar won on time"]

1. d4 {[%clk 0:04:58.7]} 1... e6 {[%clk 0:04:59.9]} 2. e4 {[%clk 0:04:57.7]}
2... d5 {[%clk 0:04:58.2]} 3. Nc3 {[%clk 0:04:57.1]} 3... dxe4 {[%clk
0:04:56.6]} 4. Nxe4 {[%clk 0:04:56.4]} 4... Nf6 {[%clk 0:04:56.5]} 5. Bd3 {[%clk
0:04:51.9]} 5... b6 {[%clk 0:04:52.1]} 6. Bg5 {[%clk 0:04:46.6]} 6... Be7 {[%clk
0:04:50]} 7. Nf3 {[%clk 0:04:43.2]} 7... Bb7 {[%clk 0:04:48.4]} 8. Nxf6+ {[%clk
0:04:29.2]} 8... Bxf6 {[%clk 0:04:35.6]} 9. Bxf6 {[%clk 0:04:27.8]} 9... Qxf6
{[%clk 0:04:35.5]} 10. c3 {[%clk 0:04:17]} 10... Nd7 {[%clk 0:04:32.9]} 11. Qe2
{[%clk 0:03:57]} 11... c5 {[%clk 0:04:12.1]} 12. Be4 {[%clk 0:03:35.5]} 12...
Bxe4 {[%clk 0:04:03.9]} 13. Qxe4 {[%clk 0:03:35.4]} 13... O-O {[%clk 0:04:02.7]}
14. O-O {[%clk 0:03:27.9]} 14... cxd4 {[%clk 0:03:59.3]} 15. Nxd4 {[%clk
0:03:25.5]} 15... Nc5 {[%clk 0:03:54.6]} 16. Qc2 {[%clk 0:03:13.8]} 16... Rac8
{[%clk 0:03:33]} 17. Rfd1 {[%clk 0:02:53.9]} 17... Rfd8 {[%clk 0:03:27.5]} 18.
Rac1 {[%clk 0:02:01.2]} 18... h6 {[%clk 0:03:23.8]} 19. b4 {[%clk 0:01:59.4]}
19... Nb7 {[%clk 0:03:17.6]} 20. b5 {[%clk 0:01:57.1]} 20... Nc5 {[%clk
0:03:12.3]} 21. Nc6 {[%clk 0:01:55]} 21... Rxd1+ {[%clk 0:03:08.5]} 22. Rxd1
{[%clk 0:01:53.5]} 22... Ra8 {[%clk 0:03:06.5]} 23. c4 {[%clk 0:01:37.7]} 23...
Qf4 {[%clk 0:02:30.5]} 24. Rd4 {[%clk 0:01:23.3]} 24... Qg5 {[%clk 0:02:21.9]}
25. Qd1 {[%clk 0:01:10.9]} 25... Qf6 {[%clk 0:02:15.7]} 26. g3 {[%clk
0:00:56.8]} 26... Kh7 {[%clk 0:02:00.5]} 27. Rf4 {[%clk 0:00:45.8]} 27... Qg6
{[%clk 0:01:09.7]} 28. Qf3 {[%clk 0:00:20.3]} 28... Qb1+ {[%clk 0:00:56.6]} 29.
Kg2 {[%clk 0:00:18.8]} 29... Qxa2 {[%clk 0:00:34.9]} 30. Rxf7 {[%clk 0:00:09.4]}
30... Qc2 {[%clk 0:00:29.1]} 31. Ne5 {[%clk 0:00:06.2]} 31... Rd8 {[%clk
0:00:22.4]} 32. Rf8 {[%clk 0:00:03.4]} 32... Rd2 {[%clk 0:00:18]} 33. Qf7 {[%clk
0:00:01.2]} 33... Rxf2+ {[%clk 0:00:10.7]} 34. Qxf2 {[%clk 0:00:01]} 34... Qxf2+
{[%clk 0:00:08.7]} 35. Kxf2 {[%clk 0:00:00.9]} 35... Ne4+ {[%clk 0:00:07.9]} 0-1

[Event "Live Chess"]
[Site "Chess.com"]
[Date "2023.05.20"]
[Round "-"]
[White "Misha145Chess"]
[Black "alexlines8"]
[Result "0-1"]
[WhiteElo "585"]
[BlackElo "1271"]
[TimeControl "300"]
[EndTime "9:34:39 PDT"]
[Termination "alexlines8 won by checkmate"]

1. e4 {[%clk 0:04:57.8]} 1... c6 {[%clk 0:04:58.9]} 2. d4 {[%clk 0:04:55.1]}
2... d5 {[%clk 0:04:58.6]} 3. Nc3 {[%clk 0:04:54.6]} 3... dxe4 {[%clk
0:04:56.7]} 4. Nxe4 {[%clk 0:04:54.5]} 4... Nf6 {[%clk 0:04:55.6]} 5. Nxf6+
{[%clk 0:04:52.8]} 5... exf6 {[%clk 0:04:55.5]} 6. Qe2+ {[%clk 0:04:46]} 6...
Qe7 {[%clk 0:04:53.4]} 7. Qxe7+ {[%clk 0:04:44.5]} 7... Bxe7 {[%clk 0:04:53.3]}
8. Nf3 {[%clk 0:04:41]} 8... Bf5 {[%clk 0:04:51.3]} 9. c4 {[%clk 0:04:31.9]}
9... O-O {[%clk 0:04:46.3]} 10. Be2 {[%clk 0:04:27.5]} 10... Re8 {[%clk
0:04:38.6]} 11. O-O {[%clk 0:04:25]} 11... Nd7 {[%clk 0:04:33.2]} 12. Re1 {[%clk
0:04:23.4]} 12... Bb4 {[%clk 0:04:30.1]} 13. Bd2 {[%clk 0:04:14.5]} 13... Bxd2
{[%clk 0:04:20.1]} 14. Nxd2 {[%clk 0:04:12]} 14... a6 {[%clk 0:04:11.9]} 15. Bf3
{[%clk 0:04:07.8]} 15... Red8 {[%clk 0:04:05.2]} 16. d5 {[%clk 0:04:04.3]} 16...
cxd5 {[%clk 0:04:00.7]} 17. Bxd5 {[%clk 0:04:00.4]} 17... Nb6 {[%clk 0:03:54.8]}
18. Bxb7 {[%clk 0:03:43.3]} 18... Rab8 {[%clk 0:03:46.9]} 19. c5 {[%clk
0:03:33.8]} 19... Rxb7 {[%clk 0:03:33.6]} 20. cxb6 {[%clk 0:03:23.2]} 20... Rxb6
{[%clk 0:03:28.7]} 21. Nc4 {[%clk 0:03:17.1]} 21... Rc6 {[%clk 0:03:10.1]} 22.
Na5 {[%clk 0:03:13.7]} 22... Rb6 {[%clk 0:03:00.5]} 23. Nc4 {[%clk 0:03:03.9]}
23... Rb5 {[%clk 0:02:53.9]} 24. Nd6 {[%clk 0:03:00.4]} 24... Rd5 {[%clk
0:02:40]} 25. Nb7 {[%clk 0:02:49.7]} 25... Rb8 {[%clk 0:02:30.1]} 26. Rad1
{[%clk 0:02:36.3]} 26... Rxd1 {[%clk 0:02:22.4]} 27. Rxd1 {[%clk 0:02:35.1]}
27... h6 {[%clk 0:02:18.2]} 28. b4 {[%clk 0:02:25.4]} 28... Rxb7 {[%clk
0:02:13.6]} 29. Rd8+ {[%clk 0:02:20.6]} 29... Kh7 {[%clk 0:02:11.9]} 30. Ra8
{[%clk 0:02:16.3]} 30... Rxb4 {[%clk 0:02:09.9]} 31. Rxa6 {[%clk 0:02:14.6]}
31... Rb1# {[%clk 0:02:08.7]} 0-1

[Event "Live Chess"]
[Site "Chess.com"]
[Date "2023.05.20"]
[Round "-"]
[White "OceanFloater"]
[Black "vinni3012"]
[Result "0-1"]
[WhiteElo "983"]
[BlackElo "1880"]
[TimeControl "300"]
[EndTime "9:34:40 PDT"]
[Termination "vinni3012 won by resignation"]

1. e4 {[%clk 0:04:58.1]} 1... c6 {[%clk 0:04:58.9]} 2. Nf3 {[%clk 0:04:57.4]}
2... d5 {[%clk 0:04:58.8]} 3. e5 {[%clk 0:04:55.5]} 3... c5 {[%clk 0:04:48.7]}
4. d4 {[%clk 0:04:53.7]} 4... cxd4 {[%clk 0:04:43.3]} 5. Nxd4 {[%clk 0:04:52.6]}
5... Nc6 {[%clk 0:04:42.7]} 6. Nc3 {[%clk 0:04:48.9]} 6... e6 {[%clk 0:04:18.8]}
7. Bb5 {[%clk 0:04:39.9]} 7... Bd7 {[%clk 0:04:16.5]} 8. Nxc6 {[%clk 0:04:38.1]}
8... Bxc6 {[%clk 0:04:14.8]} 9. Bxc6+ {[%clk 0:04:37.1]} 9... bxc6 {[%clk
0:04:14.7]} 10. O-O {[%clk 0:04:35.4]} 10... Bc5 {[%clk 0:04:05.1]} 11. a3
{[%clk 0:04:22.7]} 11... Ne7 {[%clk 0:04:01.8]} 12. b4 {[%clk 0:04:20.9]} 12...
Bb6 {[%clk 0:04:01.2]} 13. a4 {[%clk 0:04:17.5]} 13... a5 {[%clk 0:03:51.5]} 14.
b5 {[%clk 0:04:15]} 14... O-O {[%clk 0:03:30.5]} 15. bxc6 {[%clk 0:04:11.3]}
15... Nxc6 {[%clk 0:03:27.8]} 16. Nb5 {[%clk 0:04:10.3]} 16... Nxe5 {[%clk
0:03:22.5]} 17. Ba3 {[%clk 0:04:07.3]} 17... Re8 {[%clk 0:03:05.4]} 18. Nd6
{[%clk 0:04:05.8]} 18... Re7 {[%clk 0:02:55.9]} 19. Nb7 {[%clk 0:04:02.7]} 19...
Rxb7 {[%clk 0:02:54.2]} 20. Rb1 {[%clk 0:03:55.3]} 20... Nc4 {[%clk 0:02:53.1]}
21. Bc1 {[%clk 0:03:51.9]} 21... Bxf2+ {[%clk 0:02:49.7]} 22. Rxf2 {[%clk
0:03:46.9]} 22... Rxb1 {[%clk 0:02:48.5]} 23. Qe1 {[%clk 0:03:27.3]} 23... Qg5
{[%clk 0:02:38.7]} 0-1